Cogmind - Beta 15 @@@ ROGUE MODE // 2025.05.10 @ 15:43:17 Player: Bardic Entropy Result: Destroyed by X-62 Marksman with Pulse Rifle Performance ------------- Evolutions (2) 1000 Regions Visited (3) 600 Robots Destroyed (35) 175 Value Destroyed (1092) 1092 Prototype IDs (2) 40 Alien Tech Used (0) 0 Bonus (0) 0 TOTAL SCORE: 2907 Bonus ------- None Cogmind --------- Core Integrity 0/550 Matter 295/300 Energy 99/100 System Corruption 10% Temperature Cool (9) Movement Core (50) Location -8/Materials Parts ------- > --- POWER (1) -------- (None) > --- PROPULSION (3) --- (None) > --- UTILITY (4) ------ (None) > --- WEAPON (3) ------- (None) > --- INVENTORY (5) ---- Improved Sensor Array Terrain Scanner Heavy Armor Plating Grenade Launcher Peak State ------------ > --- POWER ------------ Improved Ion Engine > --- PROPULSION ------- Armored Treads Armored Treads Armored Treads > --- UTILITY ---------- Large Storage Unit Improved Sensor Array Hacking Suite System Shield > --- WEAPON ----------- Heavy Assault Rifle Battle Rifle Makeshift Hammer > --- INVENTORY -------- Light Ion Engine Large Storage Unit Large Matter Pod Structural Scanner Improved Sensor Array Terrain Scanner Improved Terrain Scan Processor Seismic Detector Core Shielding Heavy Armor Plating Heavy Battle Rifle Light Cannon Grenade Launcher Datajack [Rating: 31] Favorites ----------- Power Ion Engine Engine Ion Engine Propulsion Light Treads Treads Light Treads Wheel Compact Wheel Utility Large Storage Unit Device Structural Scanner Storage Large Storage Unit Hackware Hacking Suite Protection Core Shielding Weapon Light Cannon Energy Gun Medium Laser Energy Cannon Beam Cannon Ballistic Gun Subdweller Machine Gun Ballistic Cannon Light Cannon Impact Weapon Makeshift Hammer Special Melee Weapon Datajack Build | -11 -10 -10 -8 ------- Run | Yrd Mat Sub Mat Slots Evolved 4 | . . . 4 Power . | . . . . Propulsion 1 | . . . 1 Utility 2 | . . . 2 Weapon 1 | . . . 1 Parts Attached 45 | 6 11 10 18 Power 4 | 1 2 . 1 Engine 4 | 1 2 . 1 Core . | . . . . Reactor . | . . . . Propulsion 12 | 2 1 2 7 Treads 7 | 2 1 . 4 Leg . | . . . . Wheel 5 | . . 2 3 Hover . | . . . . Flight . | . . . . Utility 10 | 1 3 . 6 Device 4 | . 1 . 3 Storage 3 | 1 2 . . Processor . | . . . . Hackware 2 | . . . 2 Protection 1 | . . . 1 Artifact . | . . . . Weapon 19 | 2 5 8 4 Energy Gun 2 | 2 . . . Energy Cannon 2 | . 2 . . Ballistic Gun 8 | . 1 6 1 Ballistic Cannon 4 | . 2 2 . Launcher . | . . . . Special Weapon . | . . . . Impact Weapon 2 | . . . 2 Slashing Weapon . | . . . . Piercing Weapon . | . . . . Special Melee Weapon 1 | . . . 1 Unidentified Prototypes . | . . . . Parts Lost 9 | . . 2 7 Power . | . . . . Propulsion 2 | . . 1 1 Utility 2 | . . . 2 Weapon 5 | . . 1 4 Highest Loss Streak 3 | . . 2 3 To Critical Strikes . | . . . . Average Backups 11 | . 9 13 12 Power . | . . 1 . Propulsion 2 | . 2 3 . Utility 3 | . 2 3 6 Weapon 3 | . 3 5 2 Tool/Special . | . . . . Unused Backups 12 | . 2 2 8 Power . | . . . . Propulsion 1 | . . . 1 Utility 6 | . . . 6 Weapon 5 | . 2 2 1 Tool/Special . | . . . . Average Slot Usage (%) 96 | . 97 99 88 Engine 12 | . 14 14 8 Treads 18 | . 28 14 9 Wheel 8 | . . 13 15 Device 9 | . 7 14 9 Storage 14 | . 19 14 8 Hackware 2 | . . . 9 Protection 1 | . . . 5 Energy Cannon 2 | . 6 . . Ballistic Gun 11 | . 3 17 18 Ballistic Cannon 11 | . 16 10 2 Peak Build Rating 31 | 6 8 14 31 Average Rating 11 | 4 7 9 20 On Entrance 6 | . 6 8 13 Naked Turns 14 | . . . 14 Heaviest Build 41 | 14 41 34 41 Greatest Support 60 | 40 40 40 60 Greatest Overweight (x) 4 | 4 1 1 1 Average Overweight (x) . | . . . . Largest Inventory Capacity 15 | 8 15 15 15 Average Capacity 13 | 7 13 15 14 Most Carried 15 | 1 15 15 15 Average Carried 11 | . 10 13 12 Final Capacity 15 | 8 15 15 5 Final Carried 14 | 1 14 12 5 Class Distribution -------------------- 77% | Mutant 11% | Scavenger-Tank 5% | Scavenger-Mutant 5% | Hacker-Mutant Dominant Class ---------------- Mutant | -10/Materials Mutant | -10/Subcaves Scavenger-Tank | -8/Materials Resources | -11 -10 -10 -8 ----------- Run | Yrd Mat Sub Mat Matter Collected 1566 | 158 528 289 591 Remotely . | . . . . Salvage Created 1294 | . 618 156 520 Parts 70 | . 31 15 24 Haulers Intercepted 2 | . 1 . 1 Recyclers Shooed 1 | . 1 . . Parts Field Recycled . | . . . . Retrieved Matter . | . . . . Parts Self-Destructed 13 | . . 13 . Prevented . | . . . . Kills | -11 -10 -10 -8 ------- Run | Yrd Mat Sub Mat Combat Hostiles Destroyed 25 | . 9 7 9 Melee 1 | . . . 1 Guns 9 | . . 4 5 Cannons 14 | . 9 3 2 Classes Destroyed 11 | . 6 2 3 Builder 2 | . 1 . 1 Hauler 2 | . 1 . 1 Recycler 3 | . 3 . . Watcher 3 | . 3 . . Swarmer 3 | . 3 . . Grunt 9 | . 6 . 3 Duelist 2 | . . . 2 Sentry 2 | . . . 2 Specialist 2 | . . . 2 Artisan 1 | . . 1 . Subdweller 7 | . . 7 . Best Kill Streak 4 | . 4 2 2 Combat Bots Only 3 | . 3 2 2 Max Kills in Single Turn 2 | . 2 1 1 Gunslinging . | . . . . Exploded . | . . . . Melee 1 | . . . 1 Uniques/NPCs Destroyed . | . . . . Combat | -11 -10 -10 -8 -------- Run | Yrd Mat Sub Mat Hostile Shots Fired 180 | . 46 41 93 Missed 38 | . 7 7 24 Hits 142 | . 39 34 69 Melee 14 | . . . 14 Projectile 128 | . 39 34 55 Critical Strikes 8 | . . 2 6 Damage Taken 2799 | . 422 694 1683 Core 766 | . 79 137 550 Absorbed by Shields . | . . . . Redirected to Shielding 8 | . . . 8 Core Remaining (%) 56 | 100 . 13 . Volleys Fired 117 | . 38 32 47 Largest 3 | . 2 2 3 Hottest 120 | . 120 60 88 Shots Fired 222 | . 70 63 89 Gun 106 | . 10 31 65 Cannon 116 | . 60 32 24 Launcher . | . . . . Special . | . . . . Kinetic 196 | . 44 63 89 Thermal 26 | . 26 . . Explosive . | . . . . Electromagnetic . | . . . . Robot Hit Streak 14 | . 9 14 11 Robot Miss Streak 4 | . 4 2 4 Penetration Max . | . . . . Secondary Targets 1 | . . . 1 Max Gunslinging Chain 1 | . . . 1 Shots Hit Robots 157 | . 43 47 67 Core Hits 54 | . 22 15 17 Critical Kills 2 | . 1 1 . Critical Parts Destroyed 4 | . . . 4 Critical Strikes 10 | . 3 2 5 Meltdown 1 | . 1 . . Destroy 3 | . . 2 1 Blast 3 | . 2 . 1 Smash 3 | . . . 3 Melee Attacks 20 | . . . 20 Impact 15 | . . . 15 Slashing . | . . . . Piercing . | . . . . Sneak Attacks . | . . . . Combat Hostiles . | . . . . Follow-up Attacks 1 | . . . 1 Damage Inflicted 2839 | . 807 806 1226 Guns 1242 | . 56 450 736 Cannons 1420 | . 747 356 317 Explosions . | . . . . Melee 173 | . . . 173 Ramming 4 | . 4 . . Kinetic 2294 | . 435 806 1053 Thermal 368 | . 368 . . Explosive . | . . . . Electromagnetic . | . . . . Impact 173 | . . . 173 Slashing . | . . . . Piercing . | . . . . Highest Corruption 10 | . . . 10 Average Corruption 10 | . . . 10 Corruption Purged . | . . . . Corruption Blocked . | . . . . Effects 5 | . . . 5 Message Errors 3 | . . . 3 Misdirections 1 | . . . 1 Weapon Failures 1 | . . . 1 Overload Shots . | . . . . Overflow Damage 137 | . . . 137 Projectiles . | . . . . Explosions . | . . . . Melee 137 | . . . 137 Knockbacks 19 | . 5 6 8 Impact . | . . . . Kinetic 18 | . 4 6 8 Secondary 1 | . 1 . . Self-Inflicted Damage . | . . . . Shots . | . . . . Rammed 1 | . 1 . . Targets Rammed 1 | . 1 . . Kicked . | . . . . Crushed . | . . . . Highest Temperature 467 | . 467 . 54 Average Temperature 82 | . 123 . 10 Received Heat Transfer 615 | . 189 12 414 Effects 5 | . 5 . . Shutdowns 1 | . 1 . . Energy Bleed 1 | . 1 . . Damage (major) 3 | . 3 . . Siege Activations . | . . . . Martial Activations . | . . . . Shielding Activations . | . . . . Robots Disrupted . | . . . . Combat Hostiles . | . . . . Robots Corrupted 1 | . . . 1 Combat Hostiles 1 | . . . 1 Parts Fried 3 | . . . 3 Impact Corruptions 4 | . . . 4 Robots Melted 1 | . 1 . . Combat Hostiles . | . . . . Parts Melted 4 | . 4 . . Heat Transferred 777 | . 777 . . Parts Sabotaged . | . . . . Parts Stolen . | . . . . Parts Stripped . | . . . . Power Chain Reactions . | . . . . Alert | -11 -10 -10 -8 ------- Run | Yrd Mat Sub Mat Maximum Alert Level . | . . . . Low Security (%) 100 | 100 100 . 100 Level 1 . | . . . . Level 2 . | . . . . Level 3 . | . . . . Level 4 . | . . . . Level 5 . | . . . . High Security . | . . . . Max Security . | . . . . Peak Influence 68 | . 60 . 68 Initial . | . . . . Average 16 | . 15 . 21 Influence Increases 585 | . 304 . 281 Destroy 0b10 Robot/C 360 | . 180 . 180 Destroy 0b10 Robot/NC 50 | . 40 . 10 Destroy Leader 100 | . 48 . 52 Successful Hack 20 | . 20 . . Disable Machine 15 | . 15 . . Destroy Structure 10 | . 1 . 9 Lose Combat Pursuer 30 | . . . 30 Influence Decreases 585 | . 304 . 281 Time Decay 525 | . 304 . 221 Lost Part 60 | . . . 60 Squads Dispatched 2 | . . . 2 Investigation . | . . . . Extermination . | . . . . Reinforcement 2 | . . . 2 Assault . | . . . . Garrison . | . . . . Intercept . | . . . . Searches Triggered . | . . . . Construction Impeded . | . . . . Haulers Reinforced . | . . . . Active Scanning Responses . | . . . . Cargo Convoy Interrupts . | . . . . Stealth | -11 -10 -10 -8 --------- Run | Yrd Mat Sub Mat Distress Signals 2 | . 2 . . Communications Jammed . | . . . . Distress Signals . | . . . . Times Spotted 42 | . 19 7 16 Peak Tracking Total 4 | . 4 2 4 Tactical Retreats 1 | . . . 1 Traps | -11 -10 -10 -8 ------- Run | Yrd Mat Sub Mat Traps Triggered . | . . . . Indirectly . | . . . . Trap Hack Attempts . | . . . . Triggered . | . . . . Disarmed 6 | . 6 . . Reprogrammed . | . . . . Reused . | . . . . Traps Extracted . | . . . . Installed . | . . . . Triggered . | . . . . Machines | -11 -10 -10 -8 ---------- Run | Yrd Mat Sub Mat Machines Disabled 1 | . 1 . . Max in Single Turn 1 | . 1 . . Machines Repaired . | . . . . Machines Dismantled . | . . . . Machines Sabotaged . | . . . . Overloaded Fab Kills . | . . . . Hacking | -11 -10 -10 -8 --------- Run | Yrd Mat Sub Mat Machines Accessed 8 | . 8 . . Terminals 6 | . 6 . . Fabricators . | . . . . Repair Stations . | . . . . Recycling Units 2 | . 2 . . Scanalyzers . | . . . . Garrison Access . | . . . . Total Hacks 18 | . 18 . . Successful 13 | . 13 . . Failed 5 | . 5 . . Catastrophic . | . . . . Database Lockouts . | . . . . Manual 12 | . 12 . . Terminals 16 | . 16 . . Fabricators . | . . . . Repair Stations . | . . . . Recycling Units 2 | . 2 . . Scanalyzers . | . . . . Garrison Access . | . . . . Terminal Hacks 4 | . 4 . . Prototype ID Bank 1 | . 1 . . Alert Level 1 | . 1 . . Disarm Traps 1 | . 1 . . Hauler Manifests 1 | . 1 . . Fabricator Hacks . | . . . . Repair Station Hacks . | . . . . Recycling Unit Hacks 2 | . 2 . . Report Inventory 2 | . 2 . . Scanalyzer . | . . . . Garrison Access Hacks . | . . . . Unauthorized Hacks 7 | . 7 . . Terminals 7 | . 7 . . Assimilate 1 | . 1 . . Botnet 6 | . 6 . . Fabricators . | . . . . Repair Stations . | . . . . Recycling Units . | . . . . Scanalyzers . | . . . . Garrison Access . | . . . . Data Cores Recovered . | . . . . Used . | . . . . Hacking Detections 4 | . 4 . . Full Trace Events . | . . . . Feedback Events . | . . . . Feedback Blocked . | . . . . Robot Schematics Acquired . | . . . . Robots Built . | . . . . Authchips . | . . . . Time . | . . . . Total Robot Build Rating . | . . . . Part Schematics Acquired . | . . . . Parts Built . | . . . . Authchips . | . . . . Time . | . . . . Total Part Build Rating . | . . . . Parts Repaired . | . . . . Time . | . . . . Parts Recycled . | . . . . Recycled Matter . | . . . . Retrieved Matter . | . . . . Retrieved Components . | . . . . Parts Scanalyzed . | . . . . Part Schematics Acquired . | . . . . Parts Damaged . | . . . . Bothacking | -11 -10 -10 -8 ------------ Run | Yrd Mat Sub Mat Used RIF Installer . | . . . . Robots Hacked . | . . . . Non-combat . | . . . . Combat . | . . . . Robot Hacks Applied . | . . . . Relay Couplers Released . | . . . . Fabnet Peak Effective % . | . . . . Robots Rewired . | . . . . Allies Hacked . | . . . . Hacks Repelled . | . . . . Allies | -11 -10 -10 -8 -------- Run | Yrd Mat Sub Mat Total Allies 1 | . 1 . . Largest Group 1 | . 1 1 . Highest-Rated Group 10 | . 10 10 . Highest-Rated Ally 10 | . 10 10 . Total Orders . | . . . . Ally Attacks . | . . . . Total Damage . | . . . . Kills . | . . . . Allies Corrupted . | . . . . Allies Melted . | . . . . Intel | -11 -10 -10 -8 ------- Run | Yrd Mat Sub Mat Active Infowar (turns) 1949 | . 640 868 441 Sensors 237 | . . . 237 Structural 1746 | . 640 868 238 Seismic 228 | . . . 228 Robot Analysis Total . | . . . . Derelict Logs Recovered 1 | . . 1 . Drone Launches . | . . . . Drone Recoveries . | . . . . Exploration | -11 -10 -10 -8 ------------- Run | Yrd Mat Sub Mat Turns Passed 2890 | 99 1225 868 698 Spaces Moved 1642 | 58 647 575 362 Core 67 | 16 . . 51 Treads 982 | 42 647 220 73 Legs . | . . . . Wheels 593 | . . 355 238 Hover . | . . . . Flight . | . . . . Fastest Speed 50 | 50 160 105 50 Average Speed 137 | 154 163 126 108 Slowest Speed 250 | 250 240 240 250 Overloaded Moves . | . . . . Propulsion Burnouts . | . . . . Robots Hopped . | . . . . Potential Cave-ins . | . . . . Cave-ins Triggered 1 | . . . 1 Exploration Rate (%) 40 | 5 92 39 24 Regions Visited 3 Branch Regions 1 Pre-discovered Areas . | . . . . Known Exits Taken . | . . . . Unknown Exits Taken 3 | 1 1 1 . Scrap Searched 2 | . . 2 . Spaces Dug 7 | . . . 7 Terrain Destroyed 9 | . . . 9 Melee 7 | . . . 7 Projectile 2 | . . . 2 AOE . | . . . . Terrain Rammed . | . . . . Walls Destroyed . | . . . . Machines Disabled . | . . . . Actions | -11 -10 -10 -8 --------- Run | Yrd Mat Sub Mat Total 2033 | 64 745 654 570 Wait 119 | . 19 21 79 Move 1639 | 57 646 574 362 Hop . | . . . . Pick Up 35 | 1 18 6 10 Fast Attach 21 | 6 6 2 7 Attach 16 | . 1 2 13 Detach 3 | . . . 3 Swap 24 | . 4 7 13 Drop 39 | . 12 10 17 Fire 117 | . 38 32 47 Melee 19 | . . . 19 Ram . | . . . . Kick . | . . . . Crush 1 | . 1 . . Escape Stasis . | . . . . Rewire . | . . . . Trap . | . . . . Miscellaneous . | . . . . Route ------- -11/Scrapyard -10/Materials (discovered 4 exits: [*Mat x2] / [*Min] / [*Sub]) -10/Subcaves (discovered 3 exits: *Mat x2 / Rec) -8/Materials History --------- Turn | Location | Event 2 | -11/Scrapyard | Met Revision 17 20 | -11/Scrapyard | Discovered new exit (range 16) 100 | -11/Scrapyard | Entered Materials 318 | -10/Materials | Build established: Mutant 745 | -10/Materials | Discovered new exit (range 8) 930 | -10/Materials | Discovered new exit (range 6) 1134 | -10/Materials | Discovered new exit (range 14) 1303 | -10/Materials | Discovered new exit (range 9) 1325 | -10/Materials | Entered Subcaves 1325 | -10/Subcaves | Accompanied by 1 ally 1433 | -10/Subcaves | Core integrity fell below 50% 1451 | -10/Subcaves | Ambushed by angry Subdweller bent on revenge 1520 | -10/Subcaves | A swath of the cavern ceiling suddenly collapsed 1571 | -10/Subcaves | Shifting Twisted Machinery released Sub. Laser 1600 | -10/Subcaves | Shifting Twisted Machinery released Barrage Gun 1806 | -10/Subcaves | Discovered new exit (range 4) 1807 | -10/Subcaves | Shifting Twisted Machinery released Scrap Shield 1815 | -10/Subcaves | Shifting Twisted Machinery released Mak. Hammer 1919 | -10/Subcaves | Discovered new exit (range 9) 2104 | -10/Subcaves | Disturbed a concealed Subdweller 2119 | -10/Subcaves | Core integrity fell below 20% 2188 | -10/Subcaves | Identified exit to Recycling 2193 | -10/Subcaves | Entered Materials 2193 | -8/Materials | Evolved 4 slots: Propulsion x1, Utility x2, Weapon x1 2751 | -8/Materials | Crushed by falling debris 2751 | -8/Materials | System corruption reached 10% 2782 | -8/Materials | Lost 3 parts (2u1w) 2860 | -8/Materials | Core integrity fell below 50% 2878 | -8/Materials | Core integrity fell below 20% 2891 | -8/Materials | Destroyed by X-62 Marksman with Pulse Rifle Last Messages --------------- 02850_ 8KLUZ QPQHMKRQ9|EQLKX: 02856_ Dropped Lrg. Storage Unit. 02857_ Extracted 63 matter. 02859_ Penetrated by Slug. 02861_ Acquired Datajack. 02868_ Jacked X-62 Marksman... 02868_ Command string: trojan(botnet) 02868_ No effect. 02869_ Penetrated by Slug. 02872_ Atomic Centrifuge disabled. 02873_ Jacked X-62 Marksman... 02875_ Slug penetrates Wall. 02876_ Jacked X-62 Marksman... 02882_ Datajack destroyed. 02885_ Slug penetrates Wall. Map ----- +----------------------------------------------------+ | ????# ######################### ### # | | ????# # ######## + """ # | | ????# # *+ ### """ # | | ????# ### # [%######## ### """ # | | ???###+##### # % !#########/####!! # | | ??# + + #??## #!! # | | ??# # # !!== *#??## """#! [ # | | ??# # # =%=!= ##?## """########### | | ??# # ####+#######%#### """########### | | ??# """ # #??#?#! ! [ ## [# ## | | ??# """"" # #### # ##= =#%""" [## | | ??# """"" # # """ " " ########### """ ## | | ??# """"" # + """ " " #### # """ [ ## | | ??# """ ######### """ """ #?## % # ## | | ??###????###???????# """ """ #### * + "S ! ## | | ???????????????????# """ """ ####*!""" # """ ## | | ?????????????????### /####*="""!# "" % ## | | ?????????????????################[ """ # ## | | ???????????????? ## =====*%% ######/######/### | | ???????????????? ## = [![! !### | | ???????????????? # ==!x!x""" ###?? ?????? ?? | | ???????????????? ## = =!! "" ##??? ??????? | | ???????????????? ## = *""" ##??? #####??????? | | ?????????????????## ##?? ?####??????? | | ?????????????????########/########??% ???????????? | | ?????????????????###### @ ######??" ???????????? | | ????????????????? % ?? ???????????? | | ??????????H? #??????????? | | ??????????? #??????????? | | ???????????############ ###########??????????? | | ?????????????????????### w######????????????????? | | ????????????????????? # ###???????????????????? | | ?????????????????????? # #?????????????????????? | | ?????????????????????? + #?????????????????????? | | ?????????????????????? # #?????????????????????? | | ???????????????????????# #?????????????????????? | | ???????????????????????# #?????????????????????? | | ???????????????????????# #?????????????????????? | | ???????????????????????? ??????????????????????? | | ???????????????????????? ??????????????????????? | | ???????????????????????? k??????????????????????? | | ?????????????????????????????????????????????????? | | ?????????????????????????????????????????????????? | | ?????????????????????????????????????????????????? | | ?????????????????????????????????????????????????? | | ?????????????????????????????????????????????????? | | ?????????????????????????????????????????????????? | | ?????????????????????????????????????????????????? | | ?????????????????????????????????????????????????? | | ?????????????????????????????????????????????????? | +----------------------------------------------------+ Best States ------------- Heat Dissipation 31 Energy Generation 12 Energy Capacity 265 Matter Stores 300 Matter Capacity 300 Sight Range 16 Robot Scan Range 15 Terrain Scan Density 10 Core Shielding 20 Evasion (%) 50 Recoil Reduction 3 Offensive Hacking 10 Defensive Hacking 10 Item Schematics ----------------- None Robot Schematics ------------------ None Fabricated ------------ Nothing Repaired ---------- Nothing Alien Tech Used ----------------- None Achievements -------------- None Challenges ------------ None Game ------ Seed LegImprinterTube Manual? 0 Play Time 01:14:59 Cumulative 42.9 hours Start 2025.05.09 @ 16:46:29 End 2025.05.10 @ 15:43:17 Sessions 3 Manual Loads 0 Difficulty Rogue Special Mode None Game No. 47 Rogue 47 Adventurer 0 Explorer 0 Win Type - Total 0 Types 0/0/0/0/0/0/0/0/0/0 Lore% 14 Gallery% 19 Achievement% 21 Wizard Run 0 Options --------- Layout 0 ASCII 0 Keyboard 0 Movement Mouse Keybinds 0 Fullscreen 1 Font 16/TerminusTall Map View 75x55 Zoom Use 0% Tactical HUD 1 Map Filters NONE Filters NONE Steam 1 RUN: 9df58f1c-5e9b-49b9-b5c1-30ef37b2682d